[Event "FIDE WYCC Girls U18 2023"]
[Site "Montesilvano"]
[Date "2023.11.18"]
[Round "6.7"]
[White "Kurmangaliyeva, Liya"]
[Black "Shohradova, Lala"]
[Result "1-0"]
[ECO "C02"]
[WhiteElo "2236"]
[BlackElo "1846"]
[Annotator "RC"]
[PlyCount "63"]
[EventDate "2023.11.13"]
[EventType "swiss"]
[EventCountry "ITA"]
[SourceTitle "playchess.com"]
[Source "ChessBase"]
[SourceQuality "1"]
[TimeControl "40/5400+30:1800+30"]

1. e4 {[%emt 0:00:09]} e6 {[%emt 0:00:41]} 2. d4 {[%emt 0:00:07]} d5 {[%emt 0:00:19]} 3. e5 {[%emt 0:00:08]} c5 {[%emt 0:00:25]} 4. c3 {[%emt 0:00:04]} Nc6 {[%emt 0:00:30]} 5. Nf3 {[%emt 0:00:07]} Qb6 {[%emt 0:01:21]} 6. Bd3 {[%emt 0:00:13]} cxd4 {[%emt 0:01:36]} 7. O-O {[%emt 0:00:06]} Bd7 {[%emt 0:02:37]} 8. Re1 {[%emt 0:00:05]} Rc8 {[%emt 0:01:46]} 9. Nbd2 {[%emt 0:00:20]} dxc3 {[%emt 0:04:05]} 10. bxc3 {[%emt 0:00:52]} Na5 {[%emt 0:07:17]} 11. Rb1 {[%emt 0:00:10]} Qc7 {[%emt 0:05:09]} 12. c4 {[%emt 0:00:06]} dxc4 {[%emt 0:22:05]} 13. Bc2 {[%emt 0:00:16]} Ne7 {[%emt 0:04:45]} 14. Ne4 {[%emt 0:30:27]} Nd5 {[%emt 0:06:46]} 15. Nfg5 {[%emt 0:01:22]} Bc6 {[%emt 0:05:58]} 16. Qh5 {[%emt 0:05:07]} g6 {[%emt 0:03:31]} 17. Qf3 {[%emt 0:00:38]} Rd8 {[%emt 0:04:04]} 18. Ba3 {[%emt 0:02:05]} b5 {[%emt 0:04:18]} 19. Bd6 {[%emt 0:04:21]} Bxd6 {[%emt 0:09:09]} 20. exd6 {[%emt 0:00:51]} Qb7 {[%emt 0:00:40]} 21. Nc5 {[%emt 0:00:13]} O-O {[%emt 0:00:23]} 22. Nxb7 {[%emt 0:00:15]} Nxb7 {[%emt 0:00:01]} 23. Qh3 {[%emt 0:05:26]} Nf6 {[%emt 0:01:03]} 24. d7 {[%emt 0:05:06]} Nc5 {[%emt 0:02:45]} 25. Rbd1 {[%emt 0:05:59]} Bd5 {[%emt 0:01:29]} 26. Qh4 {[%emt 0:00:51]} Ncxd7 {[%emt 0:01:28]} 27. Ne4 {[%emt 0:02:34]} Kg7 {[%emt 0:01:08]} 28. Nxf6 {[%emt 0:02:46]} Nxf6 {[%emt 0:00:02]} 29. Qg3 {[%emt 0:02:26]} a5 {[%emt 0:01:54]} 30. Qe5 {[%emt 0:00:29]} h5 {[%emt 0:04:18]} 31. h3 {[%emt 0:02:00]} Rh8 {[%emt 0:00:18]} 32. Rd4 {[%emt 0:01:28]} 1-0

[Event "FIDE WYCC Girls U18 2023"]
[Site "Montesilvano"]
[Date "2023.11.18"]
[Round "6.8"]
[White "Nguyen Hong Nhung"]
[Black "Starosta, Martyna"]
[Result "*"]
[ECO "B12"]
[WhiteElo "1975"]
[BlackElo "2208"]
[Annotator "RC"]
[PlyCount "63"]
[EventDate "2023.11.13"]
[EventType "swiss"]
[EventCountry "ITA"]
[SourceTitle "playchess.com"]
[Source "ChessBase"]
[SourceQuality "1"]
[TimeControl "40/5400+30:1800+30"]

1. e4 {[%emt 0:00:03]} c6 {[%emt 0:00:05]} 2. d4 {[%emt 0:00:06]} d5 {[%emt 0:00:04]} 3. f3 {[%emt 0:00:06]} e6 {[%emt 0:00:04]} 4. Nc3 {[%emt 0:00:10]} Bb4 {[%emt 0:00:06]} 5. Bf4 {[%emt 0:00:10]} Ne7 {[%emt 0:00:12]} 6. Qd3 {[%emt 0:00:56]} b6 {[%emt 0:00:07]} 7. Nge2 {[%emt 0:00:27]} Ba6 {[%emt 0:00:06]} 8. Qe3 {[%emt 0:00:13]} O-O {[%emt 0:00:11]} 9. a3 {[%emt 0:03:13]} Bxc3+ {[%emt 0:01:47]} 10. Qxc3 {[%emt 0:00:49]} Nd7 {[%emt 0:01:38]} 11. O-O-O {[%emt 0:01:12]} c5 {[%emt 0:05:12]} 12. Bd6 {[%emt 0:15:52]} Rc8 {[%emt 0:06:43]} 13. Nf4 {[%emt 0:10:46]} Bxf1 {[%emt 0:15:28]} 14. Rhxf1 {[%emt 0:01:34]} cxd4 {[%emt 0:00:34]} 15. Qxd4 {[%emt 0:00:28]} Nc5 {[%emt 0:09:38]} 16. Bxe7 {[%emt 0:07:00]} Qxe7 {[%emt 0:00:25]} 17. Kb1 {[%emt 0:02:10]} dxe4 {[%emt 0:03:54]} 18. fxe4 {[%emt 0:00:39]} Rfd8 {[%emt 0:00:29]} 19. Qe3 {[%emt 0:01:59]} Rxd1+ {[%emt 0:03:15]} 20. Rxd1 {[%emt 0:00:15]} b5 {[%emt 0:02:01]} 21. Qc3 {[%emt 0:10:19]} Qf8 {[%emt 0:09:01]} 22. e5 {[%emt 0:05:52]} Na4 {[%emt 0:13:19]} 23. Qa5 {[%emt 0:04:05]} Qc5 {[%emt 0:05:40]} 24. Rd8+ {[%emt 0:04:56]} Rxd8 {[%emt 0:00:05]} 25. Qxd8+ {[%emt 0:00:05]} Qf8 {[%emt 0:00:05]} 26. Qc7 {[%emt 0:02:09]} Qa8 {[%emt 0:02:04]} 27. Qd7 {[%emt 0:07:00]} a6 {[%emt 0:05:06]} 28. Qc7 {[%emt 0:00:50]} g5 {[%emt 0:06:33]} 29. Nh5 {[%emt 0:01:42]} Qf8 {[%emt 0:00:19]} 30. Nf6+ {[%emt 0:00:42]} Kg7 {[%emt 0:00:42]} 31. Ne4 {[%emt 0:03:40]} b4 {[%emt 0:02:35]} 32. Qa5 {[%emt 0:02:11]} *

[Event "FIDE WYCC Girls U18 2023"]
[Site "Montesilvano"]
[Date "2023.11.18"]
[Round "6.9"]
[White "Abrisqueta Zudaire, Leyre"]
[Black "Blanquet, Camille"]
[Result "*"]
[WhiteElo "2137"]
[BlackElo "1953"]
[Annotator "NA"]
[PlyCount "65"]
[EventDate "2023.11.13"]
[EventType "swiss"]
[EventCountry "ITA"]
[SourceTitle "playchess.com"]
[Source "ChessBase"]
[SourceQuality "1"]
[TimeControl "40/5400+30:1800+30"]

1. d4 {[%emt 0:00:03]} Nf6 {[%emt 0:00:14]} 2. c4 {[%emt 0:00:11]} e6 {[%emt 0:00:14]} 3. Nf3 {[%emt 0:00:09]} d5 {[%emt 0:00:39]} 4. g3 {[%emt 0:00:09]} Bb4+ {[%emt 0:00:20]} 5. Bd2 {[%emt 0:00:56]} Be7 {[%emt 0:00:35]} 6. Bg2 {[%emt 0:00:23]} O-O {[%emt 0:02:13]} 7. O-O {[%emt 0:01:16]} Nbd7 {[%emt 0:00:30]} 8. Qc2 {[%emt 0:00:15]} Ne4 {[%emt 0:02:10]} 9. Nc3 {[%emt 0:02:49]} Nxd2 {[%emt 0:01:06]} 10. Nxd2 {[%emt 0:00:11]} c6 {[%emt 0:00:27]} 11. Rfd1 {[%emt 0:07:15]} f5 {[%emt 0:09:31]} 12. a3 {[%emt 0:00:33]} Rb8 {[%emt 0:08:55]} 13. e3 {[%emt 0:08:28]} b5 {[%emt 0:05:23]} 14. cxb5 {[%emt 0:05:53]} cxb5 {[%emt 0:00:08]} 15. Ne2 {[%emt 0:03:58]} Nb6 {[%emt 0:04:29]} 16. Nf4 {[%emt 0:05:01]} a5 {[%emt 0:03:42]} 17. b3 {[%emt 0:13:53]} Qd6 {[%emt 0:10:03]} 18. Nf3 {[%emt 0:02:57]} Ba6 {[%emt 0:05:00]} 19. Ne5 {[%emt 0:03:16]} Nd7 {[%emt 0:08:12]} 20. Nc6 {[%emt 0:06:27]} Rfc8 {[%emt 0:00:54]} 21. Nxe7+ {[%emt 0:07:12]} Qxe7 {[%emt 0:00:05]} 22. Qd2 {[%emt 0:01:39]} g5 {[%emt 0:03:08]} 23. Nd3 {[%emt 0:01:18]} b4 {[%emt 0:01:11]} 24. axb4 {[%emt 0:01:05]} Bxd3 {[%emt 0:02:00]} 25. Qxd3 {[%emt 0:00:09]} Qxb4 {[%emt 0:00:22]} 26. Bxd5 {[%emt 0:13:52]} exd5 {[%emt 0:01:45]} 27. Qxf5 {[%emt 0:00:06]} Qb5 {[%emt 0:04:01]} 28. Qxg5+ {[%emt 0:00:55]} Kf7 {[%emt 0:04:07]} 29. Rdc1 {[%emt 0:03:45]} Nf6 {[%emt 0:03:01]} 30. Qf4 {[%emt 0:00:12]} Qd7 {[%emt 0:02:28]} 31. Re1 {[%emt 0:03:05]} Rxb3 {[%emt 0:01:58]} 32. e4 {[%emt 0:02:42]} dxe4 {[%emt 0:00:45]} 33. Rxe4 {[%emt 0:00:25]} *

[Event "FIDE WYCC Girls U18 2023"]
[Site "Montesilvano"]
[Date "2023.11.18"]
[Round "6.10"]
[White "Barwinska, Ewa"]
[Black "Cornileau, Juliette"]
[Result "1-0"]
[ECO "B31"]
[WhiteElo "1974"]
[BlackElo "2089"]
[Annotator "NA"]
[PlyCount "101"]
[EventDate "2023.11.13"]
[EventType "swiss"]
[EventCountry "ITA"]
[SourceTitle "playchess.com"]
[Source "ChessBase"]
[SourceQuality "1"]
[TimeControl "40/5400+30:1800+30"]

1. e4 {[%emt 0:00:02]} c5 {[%emt 0:00:04]} 2. Nf3 {[%emt 0:00:10]} Nc6 {[%emt 0:00:03]} 3. Bb5 {[%emt 0:00:09]} g6 {[%emt 0:00:04]} 4. Bxc6 {[%emt 0:00:11]} dxc6 {[%emt 0:00:56]} 5. d3 {[%emt 0:00:19]} Bg7 {[%emt 0:00:34]} 6. h3 {[%emt 0:00:16]} e5 {[%emt 0:02:38]} 7. Be3 {[%emt 0:05:08]} Qe7 {[%emt 0:00:51]} 8. Nc3 {[%emt 0:05:46]} Nf6 {[%emt 0:00:45]} 9. Qd2 {[%emt 0:01:15]} Nd7 {[%emt 0:04:36]} 10. Bh6 {[%emt 0:05:02]} f6 {[%emt 0:01:32]} 11. Nh2 {[%emt 0:05:27]} Nf8 {[%emt 0:07:47]} 12. Bxg7 {[%emt 0:02:29]} Qxg7 {[%emt 0:00:06]} 13. f4 {[%emt 0:05:53]} Ne6 {[%emt 0:06:14]} 14. Ne2 {[%emt 0:14:13]} exf4 {[%emt 0:29:54]} 15. Nxf4 {[%emt 0:00:29]} Qc7 {[%emt 0:01:49]} 16. O-O {[%emt 0:03:07]} O-O {[%emt 0:02:27]} 17. Nxe6 {[%emt 0:05:09]} Bxe6 {[%emt 0:00:04]} 18. Qc3 {[%emt 0:06:51]} Qe7 {[%emt 0:00:06]} 19. Rf2 {[%emt 0:01:07]} b5 {[%emt 0:05:51]} 20. b3 {[%emt 0:02:02]} c4 {[%emt 0:14:54]} 21. bxc4 {[%emt 0:01:55]} Qc5 {[%emt 0:00:37]} 22. Raf1 {[%emt 0:04:09]} bxc4 {[%emt 0:06:23]} 23. d4 {[%emt 0:02:43]} Qe7 {[%emt 0:00:09]} 24. Nf3 {[%emt 0:02:45]} f5 {[%emt 0:00:27]} 25. Re1 {[%emt 0:02:07]} fxe4 {[%emt 0:00:47]} 26. Rxe4 {[%emt 0:02:09]} Qf6 {[%emt 0:00:08]} 27. Ree2 {[%emt 0:01:49]} Bd5 {[%emt 0:01:30]} 28. Ne5 {[%emt 0:01:37]} Qg5 {[%emt 0:02:01]} 29. Nxc4 {[%emt 0:01:56]} Rab8 {[%emt 0:00:45]} 30. Ne3 {[%emt 0:03:24]} Bf3 {[%emt 0:07:00]} 31. Re1 {[%emt 0:01:03]} Be4 {[%emt 0:01:27]} 32. Ref1 {[%emt 0:05:02]} Rxf2 {[%emt 0:01:25]} 33. Rxf2 {[%emt 0:00:06]} Qg3 {[%emt 0:01:24]} 34. Qc4+ {[%emt 0:02:51]} Kh8 {[%emt 0:00:02]} 35. Nf1 {[%emt 0:00:31]} Qg5 {[%emt 0:01:42]} 36. Qe2 {[%emt 0:01:12]} Bd5 {[%emt 0:00:48]} 37. c4 {[%emt 0:00:37]} Bg8 {[%emt 0:00:33]} 38. h4 {[%emt 0:01:23]} Qa5 {[%emt 0:00:21]} 39. Qe7 {[%emt 0:01:03]} h6 40. Qd6 {[%emt 0:00:00]} Qd8 {[%emt 0:00:00]} 41. Qe5+ {[%emt 0:10:48]} Kh7 {[%emt 0:01:25]} 42. h5 {[%emt 0:00:40]} Bxc4 {[%emt 0:05:32]} 43. hxg6+ {[%emt 0:00:26]} Kxg6 {[%emt 0:03:24]} 44. Rf3 {[%emt 0:04:12]} Rb7 {[%emt 0:07:20]} 45. Ne3 {[%emt 0:04:48]} Bd3 {[%emt 0:03:41]} 46. Rh3 {[%emt 0:05:12]} Qf8 {[%emt 0:11:05]} 47. Ng4 {[%emt 0:00:51]} Qf1+ {[%emt 0:01:24]} 48. Kh2 {[%emt 0:00:05]} Rh7 {[%emt 0:00:37]} 49. Rg3 {[%emt 0:00:58]} Qe2 {[%emt 0:01:01]} 50. Qf6+ {[%emt 0:00:30]} Kh5 {[%emt 0:00:05]} 51. Rh3+ {[%emt 0:00:15]} 1-0

[Event "FIDE WYCC Girls U18 2023"]
[Site "Montesilvano"]
[Date "2023.11.18"]
[Round "6.11"]
[White "Naymanova, Patricie"]
[Black "Wan, Qian"]
[Result "1/2-1/2"]
[ECO "D30"]
[WhiteElo "2083"]
[BlackElo "1945"]
[Annotator "NA"]
[PlyCount "109"]
[EventDate "2023.11.13"]
[EventType "swiss"]
[EventCountry "ITA"]
[SourceTitle "playchess.com"]
[Source "ChessBase"]
[SourceQuality "1"]
[TimeControl "40/5400+30:1800+30"]

1. d4 {[%emt 0:00:03]} d5 {[%emt 0:00:06]} 2. c4 {[%emt 0:00:04]} e6 {[%emt 0:00:05]} 3. Nf3 {[%emt 0:00:04]} Nf6 {[%emt 0:00:09]} 4. g3 {[%emt 0:00:04]} Bb4+ {[%emt 0:03:04]} 5. Bd2 {[%emt 0:00:04]} Be7 {[%emt 0:00:44]} 6. Bg2 {[%emt 0:01:02]} O-O {[%emt 0:00:12]} 7. O-O {[%emt 0:00:12]} dxc4 {[%emt 0:01:18]} 8. Qc2 {[%emt 0:00:15]} a6 {[%emt 0:11:22]} 9. a4 {[%emt 0:02:35]} c5 {[%emt 0:02:29]} 10. dxc5 {[%emt 0:03:56]} Bxc5 {[%emt 0:06:03]} 11. Qxc4 {[%emt 0:01:59]} Qe7 {[%emt 0:00:45]} 12. Nc3 {[%emt 0:08:42]} Nbd7 {[%emt 0:01:14]} 13. Rfd1 {[%emt 0:03:11]} h6 {[%emt 0:06:31]} 14. Ne1 {[%emt 0:08:33]} Nb6 {[%emt 0:04:03]} 15. Qh4 {[%emt 0:08:29]} e5 {[%emt 0:14:06]} 16. Nd3 {[%emt 0:01:25]} Bd6 {[%emt 0:01:31]} 17. a5 {[%emt 0:01:00]} Nbd7 {[%emt 0:01:38]} 18. b4 {[%emt 0:25:05]} Re8 {[%emt 0:01:50]} 19. Ne4 {[%emt 0:13:09]} Nxe4 {[%emt 0:01:20]} 20. Qxe7 {[%emt 0:00:08]} Rxe7 {[%emt 0:00:40]} 21. Bxe4 {[%emt 0:00:05]} Nf6 {[%emt 0:02:05]} 22. Bg2 {[%emt 0:01:07]} Bg4 {[%emt 0:04:41]} 23. f3 {[%emt 0:01:04]} Bd7 {[%emt 0:00:43]} 24. Nc5 {[%emt 0:06:04]} Bc6 {[%emt 0:00:18]} 25. e4 {[%emt 0:00:45]} Nd7 {[%emt 0:03:05]} 26. Be3 {[%emt 0:00:17]} Bc7 {[%emt 0:10:57]} 27. Rac1 {[%emt 0:06:19]} Nxc5 {[%emt 0:01:38]} 28. Rxc5 {[%emt 0:00:25]} Ree8 {[%emt 0:08:03]} 29. Bf1 {[%emt 0:00:30]} Bd8 {[%emt 0:01:18]} 30. Rb1 {[%emt 0:01:18]} Bf6 {[%emt 0:00:33]} 31. Kf2 {[%emt 0:00:45]} Red8 {[%emt 0:00:23]} 32. Be2 {[%emt 0:00:34]} Be7 {[%emt 0:02:35]} 33. Rxe5 {[%emt 0:01:53]} Bd6 {[%emt 0:03:37]} 34. Rh5 {[%emt 0:00:01]} Bf8 {[%emt 0:01:01]} 35. g4 {[%emt 0:00:33]} Rac8 {[%emt 0:00:33]} 36. g5 {[%emt 0:03:53]} g6 {[%emt 0:01:00]} 37. Rh4 {[%emt 0:00:52]} h5 {[%emt 0:00:27]} 38. e5 {[%emt 0:00:20]} Rd5 {[%emt 0:01:37]} 39. Re4 {[%emt 0:01:28]} Re8 {[%emt 0:01:28]} 40. Bf4 {[%emt 0:00:00]} Rd7 {[%emt 0:00:00]} 41. Rc4 {[%emt 0:05:30]} Bb5 {[%emt 0:01:58]} 42. Rc2 {[%emt 0:00:11]} Rd4 {[%emt 0:03:28]} 43. Bxb5 {[%emt 0:11:50]} axb5 {[%emt 0:00:02]} 44. Ke3 {[%emt 0:01:29]} Rxb4 {[%emt 0:00:49]} 45. Rxb4 {[%emt 0:00:11]} Bxb4 {[%emt 0:00:02]} 46. Rb2 {[%emt 0:00:17]} Bxa5 {[%emt 0:05:39]} 47. Rxb5 {[%emt 0:00:04]} b6 {[%emt 0:01:20]} 48. Ke4 {[%emt 0:00:58]} Rc8 {[%emt 0:03:29]} 49. Be3 {[%emt 0:04:41]} Rc4+ {[%emt 0:02:07]} 50. Kd3 {[%emt 0:00:32]} Rc3+ {[%emt 0:00:50]} 51. Kd4 {[%emt 0:02:05]} Rc2 {[%emt 0:00:11]} 52. Bf4 {[%emt 0:00:33]} Rf2 {[%emt 0:03:01]} 53. Rb3 {[%emt 0:01:24]} Rc2 {[%emt 0:00:31]} 54. Kd5 {[%emt 0:01:47]} Bd2 {[%emt 0:04:22]} 55. Bxd2 {[%emt 0:00:57]} 1/2-1/2

[Event "FIDE WYCC Girls U18 2023"]
[Site "Montesilvano"]
[Date "2023.11.18"]
[Round "6.12"]
[White "Groeschel, Karoline"]
[Black "Hakobyan, Astghik"]
[Result "0-1"]
[ECO "B12"]
[WhiteElo "1924"]
[BlackElo "2073"]
[Annotator "NA"]
[PlyCount "98"]
[EventDate "2023.11.13"]
[EventType "swiss"]
[EventCountry "ITA"]
[SourceTitle "playchess.com"]
[Source "ChessBase"]
[SourceQuality "1"]
[TimeControl "40/5400+30:1800+30"]

1. e4 {[%emt 0:00:02]} c6 {[%emt 0:00:05]} 2. d4 {[%emt 0:00:05]} d5 {[%emt 0:00:15]} 3. e5 {[%emt 0:00:04]} Bf5 {[%emt 0:00:12]} 4. h4 {[%emt 0:00:04]} h6 {[%emt 0:00:04]} 5. g4 {[%emt 0:03:12]} Bd7 {[%emt 0:00:04]} 6. Be3 {[%emt 0:10:59]} h5 {[%emt 0:01:27]} 7. g5 {[%emt 0:00:37]} e6 8. Nd2 {[%emt 0:05:33]} Ne7 {[%emt 0:07:33]} 9. Bd3 {[%emt 0:06:59]} g6 {[%emt 0:10:15]} 10. Ne2 {[%emt 0:05:30]} Qc7 {[%emt 0:11:10]} 11. c3 {[%emt 0:14:28]} b6 {[%emt 0:04:11]} 12. b4 {[%emt 0:06:29]} a5 {[%emt 0:08:20]} 13. a3 {[%emt 0:00:41]} Bc8 {[%emt 0:02:58]} 14. a4 {[%emt 0:09:19]} Nd7 {[%emt 0:08:34]} 15. b5 {[%emt 0:02:05]} c5 {[%emt 0:01:05]} 16. Nf3 {[%emt 0:01:42]} Bg7 {[%emt 0:01:37]} 17. O-O {[%emt 0:01:12]} Bb7 {[%emt 0:03:42]} 18. Bc1 {[%emt 0:00:49]} Rc8 {[%emt 0:01:31]} 19. Ba3 {[%emt 0:00:13]} O-O {[%emt 0:02:35]} 20. Rc1 {[%emt 0:00:53]} Rfe8 {[%emt 0:04:52]} 21. Re1 {[%emt 0:02:34]} Nf8 {[%emt 0:03:35]} 22. Ng3 {[%emt 0:03:26]} Nf5 {[%emt 0:03:28]} 23. Bxf5 {[%emt 0:05:27]} exf5 {[%emt 0:00:03]} 24. Qd2 {[%emt 0:00:22]} Ne6 {[%emt 0:00:56]} 25. Ne2 {[%emt 0:00:14]} Qd7 {[%emt 0:02:45]} 26. Nf4 {[%emt 0:01:40]} cxd4 {[%emt 0:04:57]} 27. cxd4 {[%emt 0:00:18]} Rc4 {[%emt 0:01:35]} 28. Nxe6 {[%emt 0:01:26]} fxe6 {[%emt 0:01:40]} 29. Qd1 {[%emt 0:04:58]} Rec8 {[%emt 0:01:07]} 30. Bb2 {[%emt 0:01:06]} Bf8 {[%emt 0:03:02]} 31. Nd2 {[%emt 0:01:51]} Rxc1 {[%emt 0:01:34]} 32. Bxc1 {[%emt 0:00:06]} Qc7 {[%emt 0:04:06]} 33. Nf3 {[%emt 0:01:28]} Bb4 {[%emt 0:03:33]} 34. Rf1 {[%emt 0:02:20]} Qc4 {[%emt 0:01:20]} 35. Be3 {[%emt 0:00:32]} Qa2 {[%emt 0:02:12]} 36. Qa1 {[%emt 0:01:07]} Qb3 {[%emt 0:00:44]} 37. Rb1 {[%emt 0:03:26]} Qd3 {[%emt 0:00:33]} 38. Rc1 {[%emt 0:03:06]} Rc4 {[%emt 0:00:57]} 39. Qb1 {[%emt 0:02:36]} Qa3 {[%emt 0:00:30]} 40. Qa1 {[%emt 0:00:00]} Qb3 {[%emt 0:00:00]} 41. Kg2 {[%emt 0:15:11]} Bc3 {[%emt 0:03:57]} 42. Nd2 {[%emt 0:02:09]} Bxd2 {[%emt 0:01:24]} 43. Bxd2 {[%emt 0:00:07]} Qd3 {[%emt 0:06:35]} 44. Be3 {[%emt 0:02:53]} Qe4+ {[%emt 0:00:46]} 45. Kf1 {[%emt 0:01:42]} f4 {[%emt 0:00:32]} 46. Qa3 {[%emt 0:08:35]} fxe3 {[%emt 0:01:56]} 47. Rxc4 {[%emt 0:00:56]} dxc4 {[%emt 0:01:26]} 48. Qe7 {[%emt 0:00:31]} Qg2+ {[%emt 0:00:14]} 49. Ke2 {[%emt 0:01:24]} Qxf2+ {[%emt 0:00:08]} 0-1

[Event "FIDE WYCC Girls U18 2023"]
[Site "Montesilvano"]
[Date "2023.11.18"]
[Round "6.13"]
[White "Voriskova, Anna"]
[Black "Wisniowski, Natalie"]
[Result "1-0"]
[ECO "B15"]
[WhiteElo "2065"]
[BlackElo "1901"]
[Annotator "NA"]
[PlyCount "139"]
[EventDate "2023.11.13"]
[EventType "swiss"]
[EventCountry "ITA"]
[SourceTitle "playchess.com"]
[Source "ChessBase"]
[SourceQuality "1"]
[TimeControl "40/5400+30:1800+30"]

1. e4 {[%emt 0:00:03]} c6 {[%emt 0:00:10]} 2. d4 {[%emt 0:00:25]} d5 {[%emt 0:00:10]} 3. Nc3 {[%emt 0:00:06]} dxe4 {[%emt 0:00:11]} 4. Nxe4 {[%emt 0:00:06]} Nf6 {[%emt 0:00:12]} 5. Nxf6+ {[%emt 0:00:54]} exf6 {[%emt 0:00:10]} 6. c3 {[%emt 0:01:22]} Bd6 {[%emt 0:00:12]} 7. Bd3 {[%emt 0:01:39]} O-O {[%emt 0:00:16]} 8. Qc2 {[%emt 0:00:50]} Re8+ {[%emt 0:00:16]} 9. Ne2 {[%emt 0:00:04]} h5 {[%emt 0:00:14]} 10. Be3 {[%emt 0:02:10]} Nd7 {[%emt 0:01:37]} 11. O-O-O {[%emt 0:05:45]} Nf8 {[%emt 0:00:31]} 12. Kb1 {[%emt 0:04:05]} Be6 {[%emt 0:00:20]} 13. Bf4 {[%emt 0:07:52]} Bxf4 {[%emt 0:05:47]} 14. Nxf4 {[%emt 0:00:09]} Qd6 {[%emt 0:01:39]} 15. Nxe6 {[%emt 0:04:01]} Nxe6 {[%emt 0:00:37]} 16. g4 {[%emt 0:03:11]} h4 {[%emt 0:01:42]} 17. f3 {[%emt 0:03:51]} Qf4 {[%emt 0:05:43]} 18. Qf2 {[%emt 0:07:10]} Qg5 {[%emt 0:02:33]} 19. Be4 {[%emt 0:01:40]} Nf4 {[%emt 0:02:29]} 20. Qc2 {[%emt 0:01:07]} a5 {[%emt 0:07:53]} 21. Qb3 {[%emt 0:03:01]} Re7 {[%emt 0:15:01]} 22. c4 {[%emt 0:02:06]} Rd8 {[%emt 0:06:13]} 23. d5 {[%emt 0:02:07]} cxd5 {[%emt 0:00:49]} 24. cxd5 {[%emt 0:00:02]} Red7 {[%emt 0:01:42]} 25. d6 {[%emt 0:03:14]} Rxd6 {[%emt 0:07:13]} 26. Rxd6 {[%emt 0:00:09]} Rxd6 {[%emt 0:00:06]} 27. Qxb7 {[%emt 0:00:27]} Ne6 {[%emt 0:02:45]} 28. Rc1 {[%emt 0:02:36]} Qd2 {[%emt 0:01:59]} 29. Qe7 {[%emt 0:03:40]} Rd8 {[%emt 0:01:25]} 30. a3 {[%emt 0:01:18]} Rb8 {[%emt 0:06:22]} 31. Rc2 {[%emt 0:00:05]} Qd4 {[%emt 0:00:33]} 32. Ka2 {[%emt 0:03:00]} Qe5 {[%emt 0:11:21]} 33. Rd2 {[%emt 0:03:16]} Qb5 {[%emt 0:01:29]} 34. Bd5 {[%emt 0:04:39]} Re8 {[%emt 0:01:23]} 35. Qb7 {[%emt 0:00:19]} Qxb7 {[%emt 0:03:53]} 36. Bxb7 {[%emt 0:00:01]} Nc5 {[%emt 0:01:13]} 37. Bd5 {[%emt 0:01:56]} Kf8 {[%emt 0:03:49]} 38. Rc2 {[%emt 0:01:19]} Ne6 {[%emt 0:01:00]} 39. Rc6 {[%emt 0:02:50]} Rd8 {[%emt 0:05:30]} 40. Bxe6 {[%emt 0:00:00]} fxe6 {[%emt 0:00:00]} 41. Rxe6 {[%emt 0:20:30]} Rd2 {[%emt 0:00:22]} 42. Ra6 {[%emt 0:01:41]} Rxh2 {[%emt 0:00:37]} 43. Rxa5 {[%emt 0:00:02]} g6 {[%emt 0:01:31]} 44. Rd5 {[%emt 0:01:53]} Rf2 {[%emt 0:04:13]} 45. a4 {[%emt 0:09:15]} h3 {[%emt 0:11:40]} 46. a5 {[%emt 0:00:21]} h2 {[%emt 0:01:56]} 47. Rd8+ {[%emt 0:01:18]} Kg7 {[%emt 0:00:56]} 48. Rd1 {[%emt 0:00:05]} Rxf3 {[%emt 0:00:51]} 49. Rh1 {[%emt 0:00:19]} Rh3 {[%emt 0:02:26]} 50. a6 {[%emt 0:01:21]} Kf7 {[%emt 0:01:41]} 51. a7 {[%emt 0:00:25]} Rh8 {[%emt 0:00:36]} 52. Rxh2 {[%emt 0:00:21]} Ra8 {[%emt 0:00:21]} 53. Rh7+ {[%emt 0:00:12]} Ke6 {[%emt 0:00:06]} 54. Kb3 {[%emt 0:00:51]} f5 {[%emt 0:02:42]} 55. gxf5+ {[%emt 0:01:24]} gxf5 {[%emt 0:01:02]} 56. Kc4 {[%emt 0:01:16]} f4 {[%emt 0:00:48]} 57. Kb5 {[%emt 0:00:26]} f3 {[%emt 0:03:17]} 58. Kb6 {[%emt 0:00:28]} f2 {[%emt 0:00:15]} 59. Rh1 {[%emt 0:00:06]} Rd8 {[%emt 0:01:26]} 60. b4 {[%emt 0:04:08]} Rd6+ {[%emt 0:01:08]} 61. Ka5 {[%emt 0:01:01]} Rd2 {[%emt 0:02:27]} 62. Rf1 {[%emt 0:01:07]} Ra2+ {[%emt 0:03:30]} 63. Kb6 {[%emt 0:00:07]} Kd7 {[%emt 0:00:45]} 64. Kb7 {[%emt 0:01:17]} Rb2 {[%emt 0:00:38]} 65. Rd1+ {[%emt 0:00:05]} Ke7 {[%emt 0:00:18]} 66. a8=Q {[%emt 0:00:22]} Rxb4+ {[%emt 0:00:32]} 67. Kc6 {[%emt 0:00:09]} Rc4+ {[%emt 0:00:42]} 68. Kd5 {[%emt 0:00:24]} Rc7 {[%emt 0:00:40]} 69. Qa3+ {[%emt 0:00:15]} Kf7 {[%emt 0:00:19]} 70. Qf3+ {[%emt 0:00:07]} 1-0

[Event "FIDE WYCC Girls U18 2023"]
[Site "Montesilvano"]
[Date "2023.11.18"]
[Round "6.14"]
[White "Nguyen, Thien Ngan"]
[Black "Sevcikova, Lucia"]
[Result "*"]
[ECO "C00"]
[WhiteElo "1891"]
[BlackElo "2047"]
[Annotator "NA"]
[PlyCount "63"]
[EventDate "2023.11.13"]
[EventType "swiss"]
[EventCountry "ITA"]
[SourceTitle "playchess.com"]
[Source "ChessBase"]
[SourceQuality "1"]
[TimeControl "40/5400+30:1800+30"]

1. e4 {[%emt 0:00:04]} e6 {[%emt 0:00:03]} 2. d4 {[%emt 0:00:08]} d5 {[%emt 0:00:04]} 3. e5 {[%emt 0:00:08]} c5 {[%emt 0:00:04]} 4. c3 {[%emt 0:00:08]} Qb6 {[%emt 0:00:06]} 5. Nf3 {[%emt 0:00:46]} Bd7 {[%emt 0:00:11]} 6. Bd3 {[%emt 0:16:02]} Bb5 {[%emt 0:00:34]} 7. dxc5 {[%emt 0:02:07]} Bxc5 {[%emt 0:02:46]} 8. b4 {[%emt 0:15:30]} Be7 {[%emt 0:06:49]} 9. Be3 {[%emt 0:06:53]} Qa6 {[%emt 0:01:37]} 10. Bc2 {[%emt 0:05:37]} Nd7 {[%emt 0:08:05]} 11. a4 {[%emt 0:05:37]} Bc4 {[%emt 0:02:07]} 12. Na3 {[%emt 0:01:52]} Rc8 {[%emt 0:05:38]} 13. Bd4 {[%emt 0:03:47]} f6 {[%emt 0:07:25]} 14. Nxc4 {[%emt 0:05:04]} Qxc4 {[%emt 0:05:57]} 15. Bd3 {[%emt 0:06:29]} Qc7 {[%emt 0:00:41]} 16. exf6 {[%emt 0:07:39]} Ngxf6 {[%emt 0:00:51]} 17. Qe2 {[%emt 0:01:45]} Qd6 {[%emt 0:06:49]} 18. O-O {[%emt 0:02:22]} Nh5 {[%emt 0:04:34]} 19. g3 {[%emt 0:09:20]} O-O {[%emt 0:06:01]} 20. Ne5 {[%emt 0:00:46]} g6 {[%emt 0:07:14]} 21. Nxd7 {[%emt 0:00:55]} Qxd7 {[%emt 0:00:15]} 22. Bb5 {[%emt 0:00:22]} Qd6 {[%emt 0:03:56]} 23. Bc5 {[%emt 0:00:38]} Rxc5 {[%emt 0:00:34]} 24. bxc5 {[%emt 0:00:02]} Qxc5 {[%emt 0:00:07]} 25. Qxe6+ {[%emt 0:00:07]} Kg7 {[%emt 0:00:30]} 26. Rad1 {[%emt 0:04:04]} Nf6 {[%emt 0:01:32]} 27. Be2 {[%emt 0:01:39]} Rf7 {[%emt 0:02:43]} 28. Bf3 {[%emt 0:02:32]} Qxc3 {[%emt 0:00:02]} 29. Bxd5 {[%emt 0:00:30]} Nxd5 {[%emt 0:00:02]} 30. Rxd5 {[%emt 0:00:13]} Qc4 {[%emt 0:03:27]} 31. a5 {[%emt 0:01:34]} Bf6 {[%emt 0:03:27]} 32. Rfd1 {[%emt 0:00:18]} *